Cogmind - Beta 9.4 @@@ ROGUE MODE // 2020.01.09 @ 21:16:56 Player: alice_fexa Result: Destroyed by D-53 Grenadier with Mini Grenade Launcher Performance ------------- Evolutions (0) 0 Regions Visited (2) 400 Robots Destroyed (12) 60 Value Destroyed (350) 350 Prototype IDs (0) 0 Alien Tech Used (0) 0 Bonus (0) 0 TOTAL SCORE: 810 Bonus ------- None Cogmind --------- Core Integrity 0/250 Matter 227/300 Energy 158/160 System Corruption 0% Temperature Cool (8) Movement Treading (200) Ox2 Location -10/Mines Parts ------- > --- POWER (1) -------- Light Nuclear Core > --- PROPULSION (2) --- Improved Treads > --- UTILITY (2) ------ Large Storage Unit High-capacity Storage Unit > --- WEAPON (2) ------- Improved Light Cannon Improved Light Cannon > --- INVENTORY (18) --- Ion Engine Light Treads Light Treads Improved Treads Improved Treads Improved Treads Improved Heat Sink Small Storage Unit Large Storage Unit Hardened Light Armor Plating Hardened Light Armor Plating Light Assault Rifle Improved Light Cannon Improved Light Cannon Mini Grenade Launcher Mini Grenade Launcher Peak State ------------ > --- POWER ------------ Light Nuclear Core > --- PROPULSION ------- Improved Treads Wheel > --- UTILITY ---------- Large Storage Unit High-capacity Storage Unit > --- WEAPON ----------- Medium Laser Mini Grenade Launcher > --- INVENTORY -------- Ion Engine Light Treads Light Treads Improved Treads Improved Treads Improved Treads Improved Heat Sink Small Storage Unit Large Storage Unit Hardened Light Armor Plating Hardened Light Armor Plating Light Assault Rifle Improved Light Cannon Improved Light Cannon Improved Light Cannon Improved Light Cannon Mini Grenade Launcher Mini Grenade Launcher [Rating: 14] Favorites ----------- Power Ion Engine Engine Ion Engine Power Core Light Nuclear Core Propulsion Wheel Treads Improved Treads Wheel Wheel Utility Large Storage Unit Storage Large Storage Unit Weapon Light Assault Rifle Energy Gun Medium Laser Ballistic Gun Light Assault Rifle Ballistic Cannon Improved Light Cannon Launcher Mini Grenade Launcher Build | -11 -10 -10 ------- Run | Scr Mat Min Slots Evolved . | . . . Power . | . . . Propulsion . | . . . Utility . | . . . Weapon . | . . . Parts Attached 18 | 6 9 3 Power 4 | 1 3 . Engine 2 | 1 1 . Core 2 | . 2 . Reactor . | . . . Propulsion 4 | 2 2 . Treads 2 | 1 1 . Leg . | . . . Wheel 2 | 1 1 . Hover . | . . . Flight . | . . . Utility 4 | 1 3 . Device . | . . . Storage 4 | 1 3 . Processor . | . . . Hackware . | . . . Protection . | . . . Artifact . | . . . Weapon 6 | 2 1 3 Energy Gun 1 | . 1 . Energy Cannon . | . . . Ballistic Gun 2 | 2 . . Ballistic Cannon 2 | . . 2 Launcher 1 | . . 1 Special Weapon . | . . . Impact Weapon . | . . . Slashing Weapon . | . . . Piercing Weapon . | . . . Special Melee Weapon . | . . . Unidentified Prototypes . | . . . Parts Lost 5 | . 4 1 Power 2 | . 2 . Propulsion 2 | . 1 1 Utility . | . . . Weapon 1 | . 1 . Highest Loss Streak 4 | . 4 1 Average Slot Usage (%) 97 | . 97 95 Engine 8 | . 8 . Core 4 | . 4 14 Treads 14 | . 14 14 Wheel 12 | . 13 9 Storage 27 | . 27 28 Energy Gun 4 | . 4 9 Ballistic Gun 22 | . 23 . Naked Turns . | . . . Heaviest Build 56 | 11 56 54 Greatest Support 23 | 10 23 10 Greatest Overweight (x) 5 | 1 5 5 Average Overweight (x) 3 | . 4 5 Largest Inventory Capacity 18 | 6 18 18 Average Capacity 15 | 5 16 18 Most Carried 18 | 4 18 18 Average Carried 9 | 2 9 17 Final Capacity 18 | 6 18 18 Final Carried 18 | 4 18 16 Class Distribution -------------------- 100% | Mutant Dominant Class ---------------- Mutant | -10/Materials Mutant | -10/Mines Resources | -11 -10 -10 ----------- Run | Scr Mat Min Matter Collected 421 | 233 188 . Remotely . | . . . Salvage Created 356 | . 356 . Parts 22 | . 18 4 Haulers Intercepted . | . . . Recyclers Shooed . | . . . Parts Field Recycled . | . . . Retrieved Matter . | . . . Parts Self-Destructed . | . . . Prevented . | . . . Kills | -11 -10 -10 ------- Run | Scr Mat Min Combat Hostiles Destroyed 10 | . 8 2 Guns 8 | . 8 . AOE 2 | . . 2 Classes Destroyed 3 | . 2 1 Watcher 2 | . 2 . Swarmer 2 | . . 2 Grunt 8 | . 8 . Best Kill Streak 3 | . 3 2 Combat Bots Only 3 | . 3 2 Max Kills in Single Turn 2 | . 1 2 Gunslinging . | . . . Exploded 2 | . . 2 Melee . | . . . Uniques/NPCs Destroyed . | . . . Combat | -11 -10 -10 -------- Run | Scr Mat Min Damage Taken 891 | . 583 308 Core 269 | . 152 117 Absorbed by Shields . | . . . Core Remaining (%) 100 | 100 . . Volleys Fired 54 | . 49 5 Largest 2 | . 2 2 Hottest 80 | . 70 80 Shots Fired 107 | . 97 10 Gun 101 | . 97 4 Cannon 2 | . . 2 Launcher 4 | . . 4 Special . | . . . Kinetic 92 | . 90 2 Thermal 11 | . 7 4 Explosive 4 | . . 4 Electromagnetic . | . . . Robot Hit Streak 29 | . 29 6 Robot Miss Streak 4 | . 2 4 Penetration Max . | . . . Secondary Targets 3 | . 3 . Max Gunslinging Chain 1 | . 1 . Shots Hit Robots 81 | . 75 6 Core Hits 31 | . 28 3 Critical Hits 1 | . 1 . Critical Kills . | . . . Critical Parts Destroyed 1 | . 1 . Melee Attacks . | . . . Impact . | . . . Slashing . | . . . Piercing . | . . . Sneak Attacks . | . . . Combat Hostiles . | . . . Follow-up Attacks . | . . . Damage Inflicted 906 | . 611 295 Guns 636 | . 611 25 Cannons 40 | . . 40 Explosions 230 | . . 230 Melee . | . . . Ramming . | . . . Kinetic 614 | . 574 40 Thermal 62 | . 37 25 Explosive 230 | . . 230 Electromagnetic . | . . . Impact . | . . . Slashing . | . . . Piercing . | . . . Highest Corruption . | . . . Average Corruption . | . . . Corruption Purged . | . . . Overload Shots . | . . . Overflow Damage 20 | . . 20 Projectiles . | . . . Explosions 20 | . . 20 Melee . | . . . Knockbacks . | . . . Impact . | . . . Kinetic . | . . . Secondary . | . . . Self-Inflicted Damage 48 | . . 48 Shots 2 | . . 2 Rammed . | . . . Targets Rammed . | . . . Kicked . | . . . Crushed . | . . . Highest Temperature 96 | . 60 96 Average Temperature 22 | . 16 46 Received Heat Transfer 321 | . 321 . Siege Activations . | . . . Robots Corrupted . | . . . Combat Hostiles . | . . . Parts Fried . | . . . Impact Corruptions . | . . . Robots Melted . | . . . Combat Hostiles . | . . . Parts Melted 1 | . 1 . Heat Transferred 185 | . 111 74 Parts Sabotaged . | . . . Parts Stolen . | . . . Parts Stripped . | . . . Power Chain Reactions . | . . . Missiles Intercepted . | . . . Alert | -11 -10 -10 ------- Run | Scr Mat Min Peak Influence 204 | . 204 129 Average Influence 88 | . 98 101 Maximum Alert Level 1 | . 1 . Low Security (%) 94 | 100 93 100 Level 1 5 | . 6 . Level 2 . | . . . Level 3 . | . . . Level 4 . | . . . Level 5 . | . . . High Security . | . . . Max Security . | . . . Squads Dispatched 3 | . 3 . Investigation . | . . . Extermination . | . . . Reinforcement 3 | . 3 . Assault . | . . . Garrison . | . . . Intercept . | . . . Construction Impeded . | . . . Haulers Reinforced . | . . . Stealth | -11 -10 -10 --------- Run | Scr Mat Min Distress Signals 2 | . 2 . Communications Jammed . | . . . Distress Signals . | . . . Times Spotted 22 | . 17 5 Peak Tracking Total 5 | . 5 2 Tactical Retreats 1 | . 1 . Traps | -11 -10 -10 ------- Run | Scr Mat Min Traps Triggered . | . . . Indirectly . | . . . Trap Hack Attempts . | . . . Triggered . | . . . Disarmed . | . . . Reprogrammed . | . . . Reused . | . . . Traps Extracted . | . . . Installed . | . . . Triggered . | . . . Machines | -11 -10 -10 ---------- Run | Scr Mat Min Machines Disabled . | . . . Max in Single Turn . | . . . Machines Sabotaged . | . . . Garrisons Compromised . | . . . Overloaded Fab Kills . | . . . Fab Network Shutdowns . | . . . Hacking | -11 -10 -10 --------- Run | Scr Mat Min Machines Accessed 1 | . 1 . Terminals 1 | . 1 . Fabricators . | . . . Repair Stations . | . . . Recycling Units . | . . . Scanalyzers . | . . . Garrison Access . | . . . Total Hacks 2 | . 2 . Successful 1 | . 1 . Failed 1 | . 1 . Catastrophic . | . . . Database Lockouts . | . . . Manual 2 | . 2 . Terminals 2 | . 2 . Fabricators . | . . . Repair Stations . | . . . Recycling Units . | . . . Scanalyzers . | . . . Garrison Access . | . . . Terminal Hacks . | . . . Fabricator Hacks . | . . . Repair Station Hacks . | . . . Recycling Unit Hacks . | . . . Scanalyzer . | . . . Garrison Access Hacks . | . . . Unauthorized Hacks 3 | . 3 . Terminals 1 | . 1 . Botnet 1 | . 1 . Fabricators . | . . . Repair Stations . | . . . Recycling Units . | . . . Scanalyzers . | . . . Garrison Access . | . . . Data Cores Recovered . | . . . Used . | . . . Hacking Detections 1 | . 1 . Full Trace Events . | . . . Feedback Events . | . . . Feedback Blocked . | . . . Robot Schematics Acquired . | . . . Robots Built . | . . . Matter . | . . . Time . | . . . Total Robot Build Rating . | . . . Part Schematics Acquired . | . . . Parts Built . | . . . Matter . | . . . Time . | . . . Total Part Build Rating . | . . . Parts Repaired . | . . . Time . | . . . Parts Recycled . | . . . Recycled Matter . | . . . Retrieved Matter . | . . . Retrieved Components . | . . . Parts Scanalyzed . | . . . Part Schematics Acquired . | . . . Parts Damaged . | . . . Bothacking | -11 -10 -10 ------------ Run | Scr Mat Min Used RIF Installer . | . . . Robots Hacked . | . . . Non-combat . | . . . Combat . | . . . Robot Hacks Applied . | . . . Relay Couplers Released . | . . . Robots Rewired . | . . . Allies Hacked . | . . . Hacks Repelled . | . . . Allies | -11 -10 -10 -------- Run | Scr Mat Min Total Allies . | . . . Largest Group . | . . . Highest-Rated Group . | . . . Highest-Rated Ally . | . . . Total Orders . | . . . Ally Attacks . | . . . Total Damage . | . . . Kills . | . . . Allies Corrupted . | . . . Allies Melted . | . . . Intel | -11 -10 -10 ------- Run | Scr Mat Min Robot Analysis Total . | . . . Derelict Logs Recovered . | . . . Drone Launches . | . . . Drone Recoveries . | . . . Exploration | -11 -10 -10 ------------- Run | Scr Mat Min Turns Passed 439 | 44 374 21 Spaces Moved 205 | 36 167 2 Core 1 | 1 . . Treads 2 | . 2 . Legs . | . . . Wheels 202 | 35 165 2 Hover . | . . . Flight . | . . . Fastest Speed 50 | 50 90 130 Average Speed 115 | 86 121 130 Slowest Speed 200 | 90 200 130 Overloaded Moves . | . . . Propulsion Burnouts . | . . . Robots Hopped . | . . . Cave-ins Triggered . | . . . Exploration Rate (%) 11 | 4 23 8 Regions Visited 2 Branch Regions 1 Pre-discovered Areas . | . . . Known Exits Taken . | . . . Unknown Exits Taken 2 | 1 1 . Scrap Searched . | . . . Spaces Dug . | . . . Terrain Destroyed 32 | . . 32 Melee . | . . . Projectile . | . . . AOE 32 | . . 32 Actions | -11 -10 -10 --------- Run | Scr Mat Min Total 314 | 45 257 12 Wait 15 | . 15 . Move 203 | 35 166 2 Hop . | . . . Pick Up 19 | 4 15 . Fast Attach 10 | 6 4 . Attach 4 | . 2 2 Detach . | . . . Swap 4 | . 3 1 Drop 5 | . 3 2 Fire 54 | . 49 5 Melee . | . . . Ram . | . . . Kick . | . . . Crush . | . . . Escape Stasis . | . . . Rewire . | . . . Trap . | . . . Miscellaneous . | . . . Route ------- -11/Scrapyard -10/Materials -10/Mines History --------- Turn | Location | Event 27 | -11/Scrapyard | Discovered new exit (range 16) 45 | -11/Scrapyard | Entered Materials 310 | -10/Materials | Core integrity fell below 50% 339 | -10/Materials | Lost 4 parts (2p1n1w) 347 | -10/Materials | Build established: Mutant 363 | -10/Materials | Discovered new exit (range 16) 419 | -10/Materials | Entered Mines 420 | -10/Mines | Assembled infested the area 439 | -10/Mines | Core integrity fell below 20% 440 | -10/Mines | Destroyed by D-53 Grenadier with Mini Grenade Launcher Last Messages --------------- 00382_ Acquired Mni. Grenade Launcher. 00387_ Acquired Imp. Light Cannon. 00393_ W-16 Scout destroyed. 00395_ K-01 Serf collects debris. 00404_ Acquired Mni. Grenade Launcher. 00404_ K-01 Serf collects debris. 00407_ Acquired 2 matter. LOCATION=UNKNOWN GOAL=ESCAPE 00420_ ALERT: Infestation in the mines, dispatching Demolisher response squad. 00420_ S-10 Pest destroyed. 00427_ Destroyed Flight Unit. 00430_ S-10 Pest destroyed. 00433_ Dropped Med. Laser. 00435_ The unstable cave ceiling collapses. 00436_ C-30 ARC bursts open, deploying its payload. 00436_ D-53 Grenadier unfolds itself. 00436_ Dropped Mni. Grenade Launcher. 00438_ Wheel destroyed. Map ----- +----------------------------------------------------+ | ?????????????????????????????????????????????????? | | ?????????????????????????????????????????????????? | | ?????????????????????????????????????????????????? | | ?????????????????????????????????????????????????? | | ?????????????????????????????????????????????????? | | ?????????????????????????????????????????????????? | | ?????????????????????????????????????????????????? | | ?????????????????????????????????????????????????? | | ?????????????????????????????????????????????????? | | ?????????????????????????????????????????????????? | | ?????????????????????????????????????????????????? | | ?????????????????????????????????????????????????? | | ?????????????????????????????????????????????????? | | ?????????????????????????????????????????????????? | | ???????????????????????????##????????????????????? | | ??????????????????????????# #????#???????????????? | | ?????????????????????????# ???u#??#????????????? | | ???????????????????????## ####u## ?????????????? | | ?????????????????????### # ??????????????? | | ????????????????????## d#???????????????? | | ???????????????????## d #???????????????? | | ??????????????????## #####???????????? | | ??????????????????? ????????????? | | ????????????????????# #???????????????? | | ????????????????????# #?????????????????? | | ?????????????????????# @ [ #??????????????????? | | ????????????????????# #??????????????????? | | ????????????????????# #??????????????????? | | ????????????????????# #??????????????????? | | ????????????????????# ##??????????????????? | | ????????????????????# #####???????????????????? | | ???????????????????? #???????????????????????? | | ???????????????????## #???????????????????????? | | ????????????????????### #???????????????????????? | | ??????????????????????# #???????????????????????? | | ??????????????????????# ???????????????????????? | | ??????????????????????# ???????????????????????? | | ?????????????????????? ???????????????????????? | | ?????????????????????? #???????????????????????? | | ?????????????????????? ##???????????????????????? | | ?????????????????????? ?????????????????????????? | | ?????????????????????? #?????????????????????????? | | ?????????????????????????????????????????????????? | | ?????????????????????????????????????????????????? | | ?????????????????????????????????????????????????? | | ?????????????????????????????????????????????????? | | ?????????????????????????????????????????????????? | | ?????????????????????????????????????????????????? | | ?????????????????????????????????????????????????? | | ?????????????????????????????????????????????????? | +----------------------------------------------------+ Best States ------------- Heat Dissipation 25 Energy Generation 14 Energy Capacity 250 Matter Stores 300 Matter Capacity 300 Sight Range 16 Terrain Scan Density 10 Evasion (%) 44 Recoil Reduction 1 Item Schematics ----------------- None Robot Schematics ------------------ None Fabricated ------------ Nothing Alien Tech Used ----------------- None Achievements -------------- None Challenges ------------ None Game ------ Seed TractorLargeActivator Manual? 0 Play Time 00:03:00 Cumulative 629.2 hours Start 2020.01.09 @ 21:14:20 End 2020.01.09 @ 21:16:56 Sessions 1 Manual Loads 0 Difficulty Rogue Special Mode None Game No. 557 Rogue 517 Adventurer 40 Explorer 0 Win Type - Total 42 Types 28/0/12/2/0/0/0 Lore% 88 Gallery% 90 Achievement% 69 Wizard Run 0 Options --------- ASCII 0 Keyboard 0 Movement Numpad Keybinds 0 Fullscreen 0 Font 16/Terminus Map View 76x50 Tactical HUD 1 Map Filters NONE Filters NONE Steam 1 RUN: c8e2587c-a9b5-4fe9-a855-71b196fefca9